bitfinex-derivatives/quotes_SOLF0:USTF0_20241230
["timestamp","ask_amount","ask_price","bid_price","bid_amount"]
[1735584152829,18.87581191,194.17,194.11,2.5787]
[1735584153333,3.58,194.17,194.07,12.71771191]
[1735584153529,5.6599,194.19,194.14,2.5784]
[1735584153730,3.58,194.2,194.14,2.5784]
[1735584153931,6.1577,194.2,194.14,2.5783]
[1735584154131,3.58,194.2,194.1,12.71771191]
[1735584154733,12.71771191,194.22,194.1,12.71771191]
[1735584156137,2.5775,194.21,194.16,2.578]
[1735584156346,16.29771191,194.25,194.1,12.71771191]
[1735584156547,16.29771191,194.25,194.13,12.71771191]
[1735584157445,2.5773,194.23,194.13,12.71771191]
[1735584158043,2.5773,194.23,194.16,2.5781]
[1735584158240,2.5773,194.23,194.13,12.71771191]
[1735584158449,2.5773,194.22,194.13,12.71771191]
[1735584158646,2.5773,194.22,194.17,2.5779]
[1735584158842,3.58,194.24,194.13,12.71771191]
[1735584159038,12.71771191,194.22,194.09,1.503]
[1735584159244,12.71771191,194.22,194.07,12.71771191]
[1735584159445,2.5779,194.18,194.07,12.71771191]
[1735584159642,12.71771191,194.22,194.07,12.71771191]
[1735584159843,3.58,194.21,194.07,12.71771191]
[1735584160546,2.5779,194.18,194.13,2.5784]
[1735584163847,2.5777,194.19,194.1,12.71771191]
[1735584164051,3.58,194.21,194.1,12.71771191]
[1735584164251,12.71771191,194.22,194.1,12.71771191]
[1735584164452,3.58,194.21,194.1,12.71771191]
[1735584164855,2.5776,194.2,194.15,2.5781]
[1735584165247,3.58,194.21,194.15,2.5781]
[1735584165753,2.5777,194.19,194.15,2.5781]
[1735584168453,2.5778,194.19,194.15,2.5782]
[1735584168653,3.58,194.2,194.08,12.71771191]
[1735584168846,12.71771191,194.19,194.06,1.4658]
[1735584169047,2.5786,194.13,194.09,2.579]
[1735584169748,3.58,194.14,194.12,2.5786]
[1735584173154,2.5785,194.13,194.08,2.5791]
[1735584173356,2.5785,194.13,194.06,1.4658]
[1735584173760,2.5785,194.13,194.08,2.5792]
[1735584173954,16.29771191,194.14,194.05,1.4994]
[1735584174153,16.29771191,194.14,194.01,3.1232]
[1735584174357,12.71771191,194.11,194.03,2.5797]
[1735584174658,2.5792,194.08,194.03,2.5797]
[1735584175456,2.5792,194.08,194.01,1.6164]
[1735584175659,2.5792,194.08,194.04,2.5797]
[1735584176354,2.5792,194.08,194.01,1.6164]
[1735584176355,12.71771191,194.11,194.01,1.6164]
[1735584176556,10.69493908,194.13,194.02,12.71771191]
[1735584177050,10.69493908,194.13,194.05,12.71771191]
[1735584177250,7.11493908,194.13,194.08,12.71771191]
[1735584177447,7.11493908,194.13,194.12,2.5786]
[1735584177648,7.11493908,194.16,194.09,1.5943]
[1735584177852,7.11493908,194.16,194.09,14.31201191]
[1735584178053,7.11493908,194.16,194.14,2.5783]
[1735584179256,3.58,194.18,194.14,2.5783]
[1735584179862,3.58,194.18,194.16,2.5781]
[1735584180058,2.5775,194.21,194.16,2.5781]
[1735584180361,3.58,194.22,194.1,1.5836]
[1735584181554,12.71771191,194.19,194.1,1.5836]
[1735584181857,12.71771191,194.19,194.09,1.5943]
[1735584182258,2.5781,194.16,194.12,2.5786]
[1735584182458,12.71771191,194.19,194.09,1.5943]
[1735584182859,2.578,194.17,194.12,2.5785]
[1735584183253,2.578,194.17,194.09,1.5943]
[1735584183656,2.5779,194.18,194.14,2.5783]
[1735584183856,7.11493908,194.2,194.09,14.31201191]
[1735584184057,7.11493908,194.2,194.12,12.71771191]
[1735584184253,28.45975634,194.2,194.18,2.5777]
[1735584184663,28.45975634,194.2,194.13,1.5721]
[1735584184865,28.45975634,194.2,194.19,2.5777]
[1735584185553,178.06272809,194.25,194.23,2.5772]
[1735584185554,28.45975634,194.25,194.23,2.5772]
[1735584185752,28.45975634,194.25,194.15,12.71771191]
[1735584186361,7.11493908,194.26,194.15,12.71771191]
[1735584187161,9.69173908,194.26,194.18,2.5778]
[1735584187360,9.69173908,194.26,194.15,12.71771191]
[1735584187859,2.5768,194.26,194.22,2.5773]
[1735584188367,2.5768,194.26,194.15,12.71771191]
[1735584188563,10.69493908,194.28,194.18,12.71771191]
[1735584189366,13.27153908,194.28,194.23,2.5772]
[1735584189766,6.1566,194.28,194.23,2.5772]
[1735584190268,3.58,194.28,194.21,2.5774]
[1735584190764,2.5769,194.25,194.21,2.5774]
[1735584191663,2.5769,194.25,194.2,2.5776]
[1735584192960,2.5769,194.25,194.17,1.5804]
[1735584193164,2.5769,194.25,194.21,2.5774]
[1735584196864,2.5768,194.26,194.22,2.5773]
[1735584199463,7.11493908,194.29,194.17,1.5804]
[1735584199766,7.11493908,194.29,194.19,12.71771191]
[1735584199967,7.11493908,194.29,194.18,3.58]
[1735584200164,2.5767,194.27,194.21,2.5774]
[1735584200365,12.71771191,194.28,194.18,3.58]
[1735584200874,2.5769,194.26,194.22,2.5773]
[1735584201171,12.71771191,194.28,194.17,1.5804]
[1735584201370,3.58,194.27,194.21,2.5774]
[1735584202073,2.5769,194.25,194.21,2.5774]
[1735584202465,2.5774,194.22,194.17,2.5779]
[1735584202669,12.71771191,194.25,194.13,1.5721]
[1735584203071,12.71771191,194.22,194.09,16.29771191]
[1735584203270,3.58,194.21,194.09,16.29771191]
[1735584203665,3.58,194.21,194.09,12.71771191]
[1735584204071,12.71771191,194.19,194.09,12.71771191]
[1735584204377,2.5781,194.17,194.09,12.71771191]
[1735584204574,2.5781,194.17,194.08,1.4933]
[1735584205174,2.5781,194.17,194.13,2.5785]
[1735584205682,15.29541191,194.19,194.08,1.4933]
[1735584205978,3.58,194.21,194.09,12.71771191]
[1735584206178,3.58,194.21,194.15,2.5781]
[1735584207175,2.5776,194.2,194.15,2.5781]
[1735584207380,2.5776,194.2,194.16,2.5781]
[1735584208680,3.58,194.21,194.18,2.5778]
[1735584209478,3.58,194.21,194.12,12.71771191]
[1735584211281,6.1372,194.23,194.12,12.71771191]
[1735584211481,6.1372,194.23,194.18,2.5777]
[1735584212781,9.69203908,194.24,194.19,2.5777]
[1735584213077,31.03685634,194.24,194.19,2.5777]
[1735584213684,31.03685634,194.24,194.2,2.5776]
[1735584213879,9.69203908,194.24,194.2,2.5776]
[1735584214982,7.11493908,194.23,194.2,2.5776]
[1735584215680,28.45975634,194.24,194.12,12.71771191]
[1735584215977,28.45975634,194.24,194.23,2.5772]
[1735584216379,28.45975634,194.24,194.22,2.5773]
[1735584216777,28.45975634,194.24,194.15,12.71771191]
[1735584216985,2.5771,194.24,194.2,2.5775]
[1735584217879,2.5771,194.24,194.13,1.5209]
[1735584218188,2.5771,194.24,194.21,2.5774]
[1735584218487,2.5774,194.22,194.18,2.5778]
[1735584219387,3.56,194.25,194.18,2.5778]
[1735584219577,2.5775,194.21,194.18,2.5778]
[1735584220190,2.5774,194.22,194.18,2.5778]
[1735584220884,31.03715634,194.22,194.18,2.5778]
[1735584221478,2.5779,194.18,194.09,12.71771191]
[1735584221682,3.56,194.19,194.08,3.0283]
[1735584222289,2.5781,194.16,194.08,3.0283]
[1735584222880,2.5781,194.16,194.12,2.5786]
[1735584223080,2.578,194.17,194.08,3.0283]
[1735584223284,2.578,194.17,194.1,2.5788]
[1735584223487,2.578,194.17,194.08,3.0283]
[1735584224784,2.5781,194.16,194.08,3.0283]
[1735584224990,7.11493908,194.18,194.08,3.0283]
[1735584225291,2.578,194.17,194.08,3.0283]
[1735584225594,2.5782,194.15,194.1,2.5789]
[1735584225891,12.71771191,194.15,194.02,3.1322]
[1735584226086,2.5787,194.12,194.05,2.5795]
[1735584226393,2.5787,194.12,194.02,3.1322]
[1735584226394,6.1387,194.12,194.02,1.5189]
[1735584226582,2.5791,194.09,194.02,1.5189]
[1735584226781,2.5791,194.09,194.04,2.5797]
[1735584227497,2.5794,194.07,194.02,2.5799]
[1735584227696,3.56,194.06,193.95,14.23361191]
[1735584227885,16.27771191,194.06,193.98,4.45120805]
[1735584228090,12.71771191,194.03,193.92,15.76021191]
[1735584228295,12.71771191,194.03,193.93,4.44708965]
[1735584228497,12.71771191,194.03,193.92,15.76021191]
[1735584228702,12.71771191,194.03,193.9,62.77192187]
[1735584228891,12.71771191,194.0,193.9,62.77192187]
[1735584229194,3.56,193.99,193.9,62.77192187]
[1735584229794,3.56,193.99,193.9,61.25602187]
[1735584229996,3.56,193.99,193.89,12.71771191]
[1735584230197,12.71771191,193.97,193.86,12.71771191]
[1735584230997,3.56,193.96,193.86,12.71771191]
[1735584231296,6.1408,193.96,193.9,2.5815]
[1735584231495,6.1408,193.96,193.86,12.71771191]
[1735584231496,3.56,193.96,193.86,12.71771191]
[1735584231896,3.56,193.96,193.85,1.4793]
[1735584233598,2.5809,193.95,193.89,2.5817]
[1735584234390,2.5811,193.94,193.89,2.5817]
[1735584236098,2.5811,193.94,193.85,1.4793]
[1735584237005,2.5811,193.94,193.87,2.5819]
[1735584237193,2.5811,193.94,193.85,1.4793]
[1735584237600,2.5813,193.93,193.88,2.5817]
[1735584237801,3.56,193.96,193.85,1.4793]
[1735584238001,2.5811,193.94,193.85,1.4793]
[1735584238402,3.56,193.96,193.85,1.4793]
[1735584239508,2.5812,193.93,193.88,2.5817]
[1735584239804,2.5812,193.93,193.85,1.4793]
[1735584240006,2.5812,193.93,193.87,2.5819]
[1735584240207,2.5813,193.92,193.85,1.4793]
[1735584240898,12.71771191,193.94,193.85,1.4793]
[1735584241099,12.71771191,193.97,193.86,12.71771191]
[1735584241299,3.56,193.97,193.94,2.5809]
[1735584241801,2.5797,194.05,194.0,2.5802]
[1735584241997,3.56,194.04,193.92,12.71771191]
[1735584242197,3.56,194.04,193.93,1.5518]
[1735584242400,6.1398,194.04,193.99,2.5802]
[1735584242801,3.56,194.04,193.94,1.6096]
[1735584243214,3.56,194.04,194.0,2.5802]
[1735584243608,3.56,194.04,193.94,1.6096]
[1735584243810,2.5799,194.03,193.97,2.5806]
[1735584244107,16.27771191,194.04,193.89,12.71771191]
[1735584244411,2.5806,193.98,193.94,2.581]
[1735584244808,6.1406,193.98,193.94,2.581]
[1735584247113,12.71771191,194.01,193.89,12.71771191]
[1735584247114,12.71771191,194.01,193.96,2.5807]
[1735584247312,3.56,194.01,193.89,12.71771191]
[1735584247512,3.56,194.01,193.92,12.71771191]
[1735584248514,3.56,194.01,193.97,2.5805]
[1735584249014,3.56,194.01,193.98,2.5804]
[1735584249309,12.71771191,194.04,193.98,2.5804]
[1735584249516,3.56,194.03,193.98,2.5804]
[1735584249810,1.5977,194.05,193.95,12.71771191]
[1735584250014,5.1577,194.05,193.95,12.71771191]
[1735584250415,5.1577,194.05,194.01,2.5801]
[1735584251111,5.1577,194.05,193.99,2.5803]
[1735584251316,3.56,194.04,193.94,1.4957]
[1735584253406,16.27771191,194.04,193.94,1.4957]
[1735584253607,16.27771191,194.04,193.96,2.5807]
[1735584253813,3.56,194.03,193.96,2.5807]
[1735584254313,12.71771191,194.01,193.89,12.71771191]
[1735584254518,12.71771191,194.01,193.94,2.581]
[1735584254919,12.71771191,194.01,193.92,2.5812]
[1735584255119,12.71771191,194.01,193.89,12.71771191]
[1735584255514,3.56,194.01,193.92,12.71771191]
[1735584255718,5.1577,194.05,193.92,12.71771191]
[1735584257016,5.1577,194.05,193.98,2.5804]
[1735584257321,5.1577,194.05,193.92,12.71771191]
[1735584258114,5.1577,194.05,193.99,2.5804]
[1735584259119,3.56,194.04,193.99,2.5804]
[1735584260422,3.56,194.03,193.99,2.5804]
[1735584260617,1.5977,194.05,193.92,12.71771191]
[1735584260920,3.56,194.08,193.95,12.71771191]
[1735584261119,3.56,194.08,193.98,12.71771191]
[1735584261924,10.67493908,194.09,193.98,12.71771191]
[1735584262421,3.56,194.09,193.98,12.71771191]
[1735584263115,12.71771191,194.07,193.96,3.0618]
[1735584263313,12.71771191,194.07,193.99,2.5803]
[1735584264323,12.71771191,194.07,193.96,3.0618]
[1735584265521,3.56,194.06,194.0,2.5801]
[1735584265720,3.56,194.07,193.98,12.71771191]
[1735584265922,28.45975634,194.08,193.98,12.71771191]
[1735584266524,28.45975634,194.08,194.04,12.71771191]
[1735584266726,28.45975634,194.08,194.07,15.29701191]
[1735584266921,16.03903634,194.08,194.07,15.29701191]
[1735584267128,16.03903634,194.13,194.07,12.71771191]
[1735584267320,16.03903634,194.13,194.12,2.5786]
[1735584268427,21.84091191,194.18,194.12,2.5786]
[1735584269224,2.578,194.17,194.12,2.5786]
[1735584269920,19.26291191,194.18,194.07,12.71771191]
[1735584270228,12.71771191,194.15,194.01,17.1723174]
[1735584270429,12.71771191,194.15,194.02,4.45460549]
[1735584270617,2.5787,194.12,194.07,2.5793]
[1735584270923,12.71771191,194.15,194.01,12.71771191]
[1735584271128,8.72923908,194.2,194.07,12.71771191]
[1735584271327,8.72923908,194.2,194.1,12.71771191]
[1735584271732,8.72923908,194.2,194.17,2.5779]
[1735584272129,8.72923908,194.2,194.1,12.71771191]
[1735584272330,8.72923908,194.2,194.14,2.5783]
[1735584272331,11.30683908,194.2,194.14,2.5783]
[1735584272634,1.6143,194.2,194.14,2.5783]
[1735584273633,1.6143,194.2,194.13,2.5785]
[1735584273834,1.6143,194.2,194.1,12.71771191]
[1735584274235,1.6143,194.2,194.13,2.5784]
[1735584274938,1.6143,194.2,194.08,20.40355771]
[1735584275235,2.5778,194.19,194.14,2.5783]
[1735584275437,1.6143,194.2,194.08,20.40355771]
[1735584275641,1.6143,194.2,194.09,2.5789]
[1735584275828,1.6143,194.2,194.05,20.40355771]
[1735584276029,20.40355771,194.18,194.04,3.89734286]
[1735584276232,1.576,194.17,194.07,2.5792]
[1735584276433,3.56,194.16,194.07,2.5792]
[1735584276932,21.91305771,194.15,194.05,2.5795]
[1735584277537,1.5095,194.15,194.04,3.89734286]
[1735584277738,5.1743,194.2,194.05,3.56]
[1735584277943,2.5781,194.17,194.12,2.5786]
[1735584278239,5.1743,194.2,194.12,2.5786]
[1735584279137,5.1743,194.2,194.11,2.5787]
[1735584279435,20.40355771,194.19,194.04,3.89734286]
[1735584279838,20.40355771,194.19,194.1,2.5789]
[1735584280141,2.5781,194.17,194.04,3.89734286]
[1735584280735,2.5781,194.17,194.13,2.5785]
[1735584282840,3.56,194.18,194.06,20.40355771]
[1735584283032,6.1379,194.18,194.15,2.5782]
[1735584283235,6.1379,194.18,194.06,20.40355771]
[1735584284136,3.56,194.18,194.06,20.40355771]
[1735584284443,2.578,194.17,194.06,20.40355771]
[1735584285242,2.578,194.17,194.12,2.5785]
[1735584285542,2.578,194.17,194.06,20.40355771]
[1735584287444,2.578,194.17,194.13,2.5785]
[1735584290543,1.6143,194.2,194.06,20.40355771]
[1735584290847,20.40355771,194.16,194.04,3.89734286]
[1735584291041,2.5793,194.08,194.04,6.47704286]
[1735584291241,3.56,194.15,194.04,6.47704286]
[1735584291637,2.5793,194.08,194.04,6.47704286]
[1735584292345,20.40355771,194.16,194.04,3.89734286]
[1735584292543,2.5792,194.08,194.04,3.89734286]
[1735584292937,2.5789,194.1,194.06,2.5794]
[1735584293552,2.5789,194.1,194.04,3.89734286]
[1735584293743,2.5789,194.1,194.07,2.5793]
[1735584293939,3.56,194.15,194.04,3.89734286]
[1735584294239,3.56,194.15,194.05,2.5795]
[1735584294848,2.579,194.1,194.06,2.5794]
[1735584295044,3.56,194.15,194.06,2.5794]
[1735584295448,2.5791,194.09,194.05,2.5795]
[1735584296948,2.5791,194.09,194.06,2.5794]
[1735584297943,3.0254,194.12,194.04,3.89734286]
[1735584298148,3.0254,194.12,194.05,2.5795]
[1735584298654,2.5791,194.09,194.05,2.5795]
[1735584299248,5.6041,194.12,194.08,2.5791]
[1735584299450,3.0254,194.12,194.04,3.89734286]
[1735584299950,3.0254,194.12,194.1,2.5788]
[1735584302551,2.5785,194.14,194.1,2.5788]
[1735584303247,28.56846247,194.17,194.12,12.76466242]
[1735584304048,28.56846247,194.17,194.16,2.5781]
[1735584304345,28.56846247,194.17,194.12,12.76466242]
[1735584304557,7.11493908,194.21,194.18,2.5777]
[1735584304949,7.11493908,194.21,194.12,12.76466242]
[1735584305546,2.5773,194.22,194.12,12.76466242]
[1735584305745,28.56846247,194.23,194.2,2.5775]
[1735584306052,28.56846247,194.23,194.15,12.76466242]
[1735584306252,28.56846247,194.23,194.17,2.5779]
[1735584306452,28.56846247,194.23,194.18,12.76466242]
[1735584306852,3.0667,194.25,194.18,12.76466242]
[1735584307454,3.0667,194.25,194.23,2.5771]
[1735584308150,28.56846247,194.26,194.18,12.76466242]
[1735584308652,7.11493908,194.29,194.21,12.76466242]
[1735584308955,7.11493908,194.29,194.24,12.76466242]
[1735584309254,7.11493908,194.29,194.28,2.5765]
[1735584309856,142.45018247,194.34,194.27,12.76466242]
[1735584309857,28.56846247,194.34,194.27,12.76466242]
[1735584310858,1.5985,194.38,194.27,12.76466242]
[1735584311559,4.6762,194.38,194.27,12.76466242]
[1735584312057,4.6762,194.38,194.31,2.5761]
[1735584312753,2.5755,194.36,194.31,2.5761]
[1735584313051,4.6762,194.38,194.27,12.76466242]
[1735584313753,7.11493908,194.41,194.3,12.76466242]
[1735584313951,7.11493908,194.42,194.3,12.76466242]
[1735584314359,2.5748,194.41,194.33,2.5758]
[1735584314554,2.5748,194.41,194.3,12.76466242]
[1735584314955,2.5748,194.41,194.36,2.5753]
[1735584317262,2.5748,194.41,194.37,2.5753]
[1735584318553,3.0777,194.43,194.33,12.76466242]
[1735584318752,3.0777,194.43,194.36,12.76466242]
[1735584319265,2.5743,194.45,194.41,2.5748]
[1735584319662,2.5743,194.45,194.36,12.76466242]
[1735584319663,3.54,194.48,194.36,12.76466242]
[1735584319861,6.5445,194.49,194.36,12.76466242]
[1735584320361,2.5743,194.46,194.4,2.5749]
[1735584320561,6.5445,194.49,194.4,2.5749]
[1735584320765,6.5445,194.49,194.36,12.76466242]
[1735584321463,3.0045,194.49,194.39,12.76466242]
[1735584321862,14.35986242,194.53,194.44,2.5743]
[1735584322559,14.35986242,194.53,194.43,2.5745]
[1735584323161,12.76466242,194.5,194.36,16.30466242]
[1735584323462,12.76466242,194.5,194.36,12.76466242]
[1735584323653,1.5952,194.53,194.39,2.575]
[1735584323654,12.76466242,194.47,194.39,2.575]
[1735584323855,6.7142,194.46,194.39,2.575]
[1735584324263,2.5744,194.44,194.39,2.575]
[1735584324867,3.1742,194.46,194.42,2.5746]
[1735584325368,3.1742,194.46,194.39,12.76466242]
[1735584325563,1.5952,194.53,194.39,12.76466242]
[1735584325763,6.7142,194.52,194.39,12.76466242]
[1735584326067,2.5736,194.5,194.45,2.5742]
[1735584326267,6.7142,194.52,194.39,16.30466242]
[1735584326568,2.5736,194.5,194.46,2.5741]
[1735584326969,6.7142,194.52,194.39,16.30466242]
[1735584327164,144.08206907,194.68,194.42,12.76466242]
[1735584327365,1.4842,194.59,194.49,12.76466242]
[1735584328170,1.4842,194.59,194.52,2.5732]
[1735584328171,2.5727,194.57,194.52,2.5732]
[1735584328961,2.5731,194.54,194.49,2.5737]
[1735584329166,12.76466242,194.58,194.46,12.76466242]
[1735584329469,12.76466242,194.58,194.42,16.30466242]
[1735584329862,2.5733,194.53,194.46,2.574]
[1735584330060,2.5733,194.53,194.42,16.30466242]
[1735584330261,12.76466242,194.52,194.4,3.54]
[1735584330572,1.4836,194.51,194.4,16.30466242]
[1735584330872,12.76466242,194.49,194.37,12.76466242]
[1735584331072,3.54,194.48,194.37,12.76466242]
[1735584332274,12.76466242,194.49,194.37,12.76466242]
[1735584332470,3.0407,194.51,194.4,12.76466242]
[1735584332673,3.0407,194.51,194.43,12.76466242]
[1735584332973,3.0407,194.51,194.47,2.5739]
[1735584333173,1.4836,194.51,194.43,12.76466242]
[1735584333568,1.4836,194.51,194.47,2.5739]
[1735584333771,2.5732,194.53,194.47,2.5739]
[1735584334074,3.54,194.54,194.5,2.5735]
[1735584334865,4.5312,194.57,194.51,2.5734]
[1735584335075,8.0712,194.57,194.51,2.5734]
[1735584336175,8.0712,194.57,194.46,12.76466242]
[1735584337480,8.0712,194.57,194.51,2.5734]
[1735584337970,8.0712,194.57,194.35,5.1511]
[1735584338175,12.76466242,194.54,194.41,12.76466242]
[1735584338574,12.76466242,194.54,194.45,2.5741]
[1735584338870,12.76466242,194.54,194.41,12.76466242]
[1735584340477,12.76466242,194.51,194.37,12.76466242]
[1735584340679,3.54,194.5,194.37,12.76466242]
[1735584341177,2.9923,194.49,194.42,2.5746]
[1735584341478,4.5573,194.49,194.42,2.5746]
[1735584342177,2.5741,194.47,194.42,2.5746]
[1735584342369,4.5573,194.49,194.42,2.5746]
[1735584343276,4.5573,194.49,194.37,12.76466242]
[1735584343277,2.5744,194.45,194.37,12.76466242]
[1735584343674,12.76466242,194.48,194.34,12.76466242]
[1735584343875,12.76466242,194.45,194.31,16.30466242]
[1735584344179,2.5744,194.41,194.35,2.575]
[1735584344378,3.54,194.44,194.31,16.30466242]
[1735584344876,2.5744,194.41,194.36,2.5749]
[1735584345284,3.54,194.44,194.34,12.76466242]
[1735584345582,3.54,194.44,194.37,12.76466242]
[1735584346076,3.54,194.44,194.39,2.5745]
[1735584346278,3.54,194.44,194.37,12.76466242]
[1735584346485,2.5737,194.45,194.37,12.76466242]
[1735584346682,12.76466242,194.48,194.37,12.76466242]
[1735584346683,3.54,194.47,194.37,12.76466242]
[1735584346885,2.574,194.44,194.37,12.76466242]
[1735584347084,3.54,194.47,194.37,12.76466242]
[1735584347784,2.5743,194.42,194.37,2.5748]
[1735584347981,3.54,194.47,194.37,2.5748]
[1735584348382,2.5739,194.44,194.37,2.5748]
[1735584348584,3.54,194.47,194.37,2.5748]
[1735584348983,2.5739,194.44,194.37,2.5748]
[1735584349191,3.54,194.47,194.37,2.5748]
[1735584349680,3.54,194.47,194.37,12.76466242]
[1735584350187,3.54,194.47,194.38,4.46036446]
[1735584350383,3.54,194.47,194.37,12.76466242]
[1735584350693,3.54,194.47,194.38,4.45982393]
[1735584350889,2.5739,194.45,194.39,4.4593]
[1735584351085,2.5739,194.45,194.37,12.76466242]
[1735584351292,2.5739,194.45,194.38,4.46369325]
[1735584351488,2.5739,194.45,194.39,4.46369325]
[1735584351686,2.5739,194.45,194.4,4.46369325]
[1735584351887,2.5739,194.45,194.37,12.76466242]
[1735584352089,2.5739,194.45,194.38,4.45981151]
[1735584352289,2.5739,194.45,194.39,4.45981151]
[1735584352485,2.5739,194.45,194.41,2.5742]
[1735584352690,4.5573,194.49,194.37,12.76466242]
[1735584352892,4.5573,194.49,194.4,12.76466242]
[1735584353090,4.5573,194.49,194.42,2.5741]
[1735584353286,4.5573,194.49,194.43,4.46328749]
[1735584353486,4.5573,194.49,194.37,12.76466242]
[1735584353692,4.5573,194.49,194.38,4.46746148]
[1735584353991,4.5573,194.49,194.39,4.46746148]
[1735584354192,4.5573,194.49,194.4,7.04186148]
[1735584354392,4.5573,194.49,194.4,2.5744]
[1735584354695,4.5573,194.49,194.39,2.5745]
[1735584355400,2.5742,194.42,194.39,2.5745]
[1735584355588,4.5573,194.49,194.4,4.47399613]
[1735584355784,2.5742,194.42,194.38,2.5746]
[1735584355985,2.5742,194.42,194.39,4.47356044]
[1735584356286,2.5742,194.42,194.38,2.5746]
[1735584356484,2.5742,194.42,194.39,4.47432391]
[1735584356683,2.5742,194.42,194.4,4.47432391]
[1735584356883,2.5742,194.42,194.38,2.5746]
[1735584357094,2.5742,194.42,194.39,4.47235541]
[1735584357291,2.5742,194.42,194.4,4.47235541]
[1735584357498,2.5742,194.42,194.38,2.5746]
[1735584357793,2.5742,194.42,194.39,7.04886979]
[1735584358092,2.5742,194.42,194.4,4.47436979]
[1735584358294,2.5742,194.42,194.38,2.5746]
[1735584358595,2.5742,194.42,194.39,4.4772983]
[1735584358799,4.5573,194.49,194.39,4.4772983]
[1735584358800,2.9923,194.49,194.4,17.24196072]
[1735584359092,28.56846247,194.52,194.43,12.76466242]
[1735584359288,28.56846247,194.52,194.4,12.76466242]
[1735584359289,7.11493908,194.52,194.46,12.76466242]
[1735584359591,7.11493908,194.52,194.47,4.4733724]
[1735584359792,7.11493908,194.52,194.48,4.4733724]
[1735584359996,7.11493908,194.52,194.46,12.76466242]
[1735584359997,7.11493908,194.52,194.49,4.4733724]
[1735584360192,7.11493908,194.52,194.46,12.76466242]
[1735584360394,7.11493908,194.52,194.51,2.573]
[1735584360598,3.52,194.58,194.49,12.76466242]
[1735584360891,7.11493908,194.6,194.55,2.5723]
[1735584361691,3.096,194.62,194.55,2.5723]
[1735584362095,2.5717,194.61,194.55,2.5723]
[1735584362296,3.096,194.62,194.52,12.76466242]
[1735584362490,3.096,194.62,194.53,4.4685345]
[1735584362800,3.096,194.62,194.58,2.5719]
[1735584363603,3.096,194.62,194.54,4.46538503]
[1735584363800,3.52,194.65,194.55,17.22583873]
[1735584364003,3.52,194.66,194.56,4.46117631]
[1735584364299,3.52,194.66,194.55,12.76466242]
[1735584364498,12.76466242,194.62,194.53,4.45788091]
[1735584364700,12.76466242,194.62,194.49,13.21816242]
[1735584364894,12.76466242,194.65,194.52,12.76466242]
[1735584365098,3.52,194.66,194.53,4.45713898]
[1735584365397,3.52,194.65,194.52,12.76466242]
[1735584365601,16.28466242,194.65,194.52,12.76466242]
[1735584365802,2.5714,194.63,194.55,12.76466242]
[1735584365997,3.52,194.65,194.55,12.76466242]
[1735584366601,2.5714,194.64,194.59,2.5718]
[1735584367407,2.5714,194.63,194.59,2.5718]
[1735584367802,3.52,194.65,194.52,12.76466242]
[1735584368003,12.76466242,194.63,194.49,12.76466242]
[1735584368204,12.76466242,194.6,194.49,12.76466242]
[1735584368406,5.0353,194.59,194.52,2.5728]
[1735584368602,2.5721,194.58,194.49,12.76466242]
[1735584368809,5.0353,194.59,194.49,12.76466242]
[1735584369809,12.76466242,194.57,194.46,12.76466242]
[1735584370001,12.76466242,194.57,194.47,2.5735]
[1735584370197,12.76466242,194.57,194.46,12.76466242]
[1735584371305,2.5727,194.53,194.48,2.5732]
[1735584371905,3.0686,194.58,194.49,12.76466242]
[1735584372300,1.5153,194.59,194.57,2.572]
[1735584372503,3.52,194.62,194.52,12.76466242]
[1735584372707,3.52,194.62,194.55,12.76466242]
[1735584372905,3.52,194.62,194.61,2.5716]
[1735584373101,3.52,194.62,194.55,12.76466242]
[1735584373306,3.52,194.62,194.52,12.76466242]
[1735584373902,3.52,194.62,194.59,2.5718]
[1735584374108,1.5688,194.63,194.59,2.5718]